fUST/lending_fUST_20240923
["ID","MTS","AMOUNT","RATE_DAILY","PERIOD"]
[338915971,1727071841428,-500.0,0.00038356,120]
[338915972,1727071841438,-500.0,0.00038356,120]
[338915973,1727071841447,-500.32697574,0.00038356,120]
[338915974,1727071841457,-500.50737264,0.00038356,120]
[338915975,1727071841466,-500.0,0.00038356,30]
[338915976,1727071841475,-500.0,0.00038356,120]
[338915977,1727071841484,-500.24556585,0.00038356,2]
[338915978,1727071841494,-500.0,0.00038356,120]
[338915979,1727071841503,-500.0,0.00038356,120]
[338915980,1727071841512,-500.0,0.00038356,120]
[338915981,1727071841522,-500.0,0.00038356,120]
[338915982,1727071841531,-500.0,0.00038356,120]
[338915983,1727071841540,-503.80256842,0.00038356,120]
[338915984,1727071841550,-500.0,0.00038356,120]
[338915985,1727071841559,-400.46539658,0.00038356,120]
[338915986,1727071841568,-500.0,0.00038356,120]
[338915987,1727071841578,-500.0,0.00038356,7]
[338915988,1727071841587,-500.0,0.00038356,7]
[338915989,1727071841597,-500.0,0.00038356,120]
[338915990,1727071841607,-500.0,0.00038356,120]
[338915991,1727071841616,-500.0,0.00038356,120]
[338915992,1727071841626,-501.48886914,0.00038356,120]
[338915993,1727071841635,-500.0,0.00038356,120]
[338915994,1727071841646,-500.0,0.00038356,120]
[338915995,1727071841656,-500.0,0.00038356,120]
[338915996,1727071841665,-500.0,0.00038356,120]
[338915997,1727071841675,-500.0,0.00038356,120]
[338915998,1727071841685,-500.0,0.00038356,120]
[338915999,1727071841694,-500.0,0.00038356,120]
[338916000,1727071841703,-500.0,0.00038356,120]
[338916001,1727071841713,-500.0,0.00038356,120]
[338916002,1727071841722,-503.36691466,0.00038356,120]
[338916003,1727071841731,-500.0,0.00038356,120]
[338916004,1727071841740,-630.93827773,0.00038356,120]
[338916005,1727071841750,-500.0,0.00038356,120]
[338916006,1727071841760,-500.0,0.00038356,120]
[338916007,1727071841770,-500.0,0.00038356,120]
[338916008,1727071841779,-435.13377561,0.00038356,120]
[338916009,1727071841788,-309.82594415,0.00038356,120]
[338916010,1727071841797,-509.39515591,0.00038356,120]
[338916011,1727071841806,-500.0,0.00038356,120]
[338916012,1727071841815,-500.0,0.00038356,120]
[338916013,1727071841824,-500.0,0.00038356,120]
[338916014,1727071841834,-500.0,0.00038356,120]
[338916015,1727071841843,-501.01655406,0.00038356,120]
[338916016,1727071841852,-501.01286665,0.00038356,120]
[338916017,1727071841861,-519.80259516,0.00038356,120]
[338916018,1727071841870,-500.0,0.00038356,120]
[338916019,1727071841880,-500.0,0.00038356,120]
[338916020,1727071841889,-516.08095981,0.00038356,120]
[338916021,1727071841900,-500.0,0.00038356,120]
[338916022,1727071841910,-500.0,0.00038356,120]
[338916023,1727071841919,-500.0,0.00038356,120]
[338916024,1727071841929,-500.0,0.00038356,120]
[338916025,1727071841938,-500.0,0.00038356,120]
[338916026,1727071841948,-500.0,0.00038356,120]
[338916027,1727071841957,-501.79231941,0.00038356,120]
[338916028,1727071841966,-618.6204228,0.00038356,120]
[338916029,1727071841975,-500.0,0.00038356,120]
[338916030,1727071841985,-500.0,0.00038356,120]
[338916031,1727071841995,-500.0,0.00038356,120]
[338916032,1727071842005,-500.0,0.00038356,120]
[338916033,1727071842013,-500.0,0.00038356,120]
[338916034,1727071842022,-500.0,0.00038356,120]
[338916035,1727071842032,-513.58373214,0.00038356,120]
[338916036,1727071842041,-500.0,0.00038356,120]
[338916037,1727071842050,-500.0,0.00038356,120]
[338916038,1727071842059,-506.46309859,0.00038356,120]
[338916039,1727071842069,-501.47146415,0.00038356,120]
[338916040,1727071842078,-500.0,0.00038356,120]
[338916041,1727071842088,-500.0,0.00038356,120]
[338916042,1727071842097,-500.0,0.00038356,120]
[338916043,1727071842107,-502.07016218,0.00038356,120]
[338916044,1727071842117,-500.0,0.00038356,120]
[338916045,1727071842126,-500.0,0.00038356,120]
[338916046,1727071842135,-500.0,0.00038356,120]
[338916047,1727071842147,-500.0,0.00038356,120]
[338916048,1727071842157,-500.0,0.00038356,120]
[338916049,1727071842166,-642.05916434,0.00038356,120]
[338916050,1727071842175,-450.38288175,0.00038356,120]
[338916051,1727071842184,-500.0,0.00038356,120]
[338916052,1727071842194,-506.36552262,0.00038356,120]
[338916053,1727071842203,-500.0,0.00038356,120]
[338916054,1727071842213,-500.0,0.00038356,120]
[338916055,1727071842223,-500.0,0.00038356,120]
[338916056,1727071842232,-500.0,0.00038356,120]
[338916057,1727071842241,-500.0,0.00038356,7]
[338916058,1727071842251,-500.0,0.00038356,120]
[338916059,1727071842260,-500.0,0.00038356,120]
[338916060,1727071842270,-500.0,0.00038356,120]
[338916061,1727071842279,-507.95064357,0.00038356,120]
[338916062,1727071842289,-500.0,0.00038356,120]
[338916063,1727071842298,-500.49744308,0.00038356,120]
[338916064,1727071842307,-501.53975564,0.00038356,120]
[338916065,1727071842317,-500.0,0.00038356,120]
[338916066,1727071842326,-500.0,0.00038356,30]
[338916067,1727071842335,-303.6010003,0.00038356,120]
[338916068,1727071842344,-500.0,0.00038356,120]
[338916069,1727071842354,-500.0,0.00038356,120]
[338916070,1727071842363,-500.0,0.00038356,120]
[338916071,1727071842372,-500.0,0.00038356,120]
[338916072,1727071842382,-501.04149399,0.00038356,120]
[338916073,1727071842392,-500.0,0.00038356,120]
[338916074,1727071842403,-500.0,0.00038356,120]
[338916075,1727071842412,-500.0,0.00038356,120]
[338916076,1727071842425,-500.0,0.00038356,120]
[338916077,1727071842434,-500.0,0.00038356,120]
[338916078,1727071842443,-500.0,0.00038356,120]
[338916079,1727071842453,-500.0,0.00038356,120]
[338916080,1727071842463,-502.32564113,0.00038356,120]
[338916081,1727071842472,-500.74494265,0.00038356,120]
[338916082,1727071842481,-500.0,0.00038356,120]
[338916083,1727071842566,-500.0,0.00038356,120]
[338916084,1727071842577,-500.0,0.00038356,120]
[338916085,1727071842586,-500.0,0.00038356,120]
[338916086,1727071842596,-503.00378433,0.00038356,120]
[338916087,1727071842605,-500.0,0.00038356,120]
[338916088,1727071842614,-500.0,0.00038356,120]
[338916089,1727071842623,-507.85584989,0.00038356,120]
[338916090,1727071842632,-501.20471581,0.00038356,120]
[338916091,1727071842641,-500.0,0.00038356,120]
[338916092,1727071842651,-500.0,0.00038356,120]
[338916093,1727071842660,-500.0,0.00038356,2]
[338916094,1727071842669,-500.0,0.00038356,120]
[338916095,1727071842679,-500.0,0.00038356,120]
[338916096,1727071842688,-500.0,0.00038356,120]
[338916097,1727071842697,-500.0,0.00038356,120]
[338916098,1727071842707,-1000.0,0.00038356,30]
[338916099,1727071842716,-500.0,0.00038356,120]
[338916100,1727071842726,-500.0,0.00038356,120]
[338916101,1727071842735,-500.0,0.00038356,120]
[338916102,1727071842744,-500.0,0.00038356,120]
[338916103,1727071842753,-500.0,0.00038356,120]
[338916104,1727071842762,-500.0,0.00038356,120]
[338916105,1727071842771,-500.0,0.00038356,120]
[338916106,1727071842780,-501.6341824,0.00038356,120]
[338916107,1727071842789,-501.52296407,0.00038356,120]
[338916108,1727071842798,-500.0,0.00038356,120]
[338916109,1727071842808,-200.0,0.00038356,120]
[338916110,1727071842817,-500.0,0.00038356,120]
[338916111,1727071842826,-500.0,0.00038356,120]
[338916112,1727071842835,-500.0,0.00038356,120]
[338916113,1727071842844,-500.0,0.00038356,120]
[338916114,1727071842854,-500.0,0.00038356,120]
[338916115,1727071842863,-500.0,0.00038356,120]
[338916116,1727071842873,-519.87666646,0.00038356,120]
[338916117,1727071842882,-500.0,0.00038356,120]
[338916118,1727071842891,-500.0,0.00038356,120]
[338916119,1727071842901,-500.0,0.00038356,120]
[338916120,1727071842910,-429.99623737,0.00038356,120]
[338916121,1727071842919,-500.0,0.00038356,120]
[338916122,1727071842929,-500.0,0.00038356,120]
[338916123,1727071842938,-508.08250094,0.00038356,120]
[338916124,1727071842947,-500.0,0.00038356,120]
[338916125,1727071842956,-506.12066955,0.00038356,120]
[338916126,1727071842966,-500.0,0.00038356,120]
[338916127,1727071842975,-500.0,0.00038356,120]
[338916128,1727071842984,-500.0,0.00038356,120]
[338916129,1727071842993,-500.0,0.00038356,120]
[338916130,1727071843002,-534.92661331,0.00038356,120]
[338916131,1727071843011,-500.0,0.00038356,120]
[338916132,1727071843020,-500.0,0.00038356,30]
[338916133,1727071843028,-623.79143747,0.00038356,120]
[338916134,1727071843040,-500.0,0.00038356,120]
[338916135,1727071843049,-500.0,0.00038356,120]
[338916136,1727071843058,-506.89465614,0.00038356,120]
[338916137,1727071843067,-500.0,0.00038356,120]
[338916138,1727071843077,-500.0,0.00038356,120]
[338916139,1727071843086,-502.78382334,0.00038356,120]
[338916140,1727071843095,-500.0,0.00038356,120]
[338916141,1727071843104,-500.0,0.00038356,120]
[338916142,1727071843113,-500.0,0.00038356,120]
[338916143,1727071843122,-500.0,0.00038356,120]
[338916144,1727071843131,-500.0,0.00038356,120]
[338916145,1727071843141,-500.0,0.00038356,120]
[338916146,1727071843151,-500.0,0.00038356,120]
[338916147,1727071843161,-500.0,0.00038356,120]
[338916148,1727071843170,-501.01263263,0.00038356,120]
[338916149,1727071843179,-282.13427466,0.00038356,14]
[338916150,1727071843207,-442.89353234,0.00038356,14]
[338916151,1727071843217,-725.027807,0.00038356,14]
[338916152,1727071843226,-725.027807,0.00038356,14]
[338916153,1727071843235,-725.027807,0.00038356,14]
[338916154,1727071843244,-500.0,0.00038356,120]
[338916155,1727071843253,-615.26546294,0.00038356,120]
[338916156,1727071843263,-725.027807,0.00038356,14]
[338916157,1727071843272,-500.0,0.00038356,120]
[338916158,1727071843281,-500.0,0.00038356,120]
[338916160,1727071843291,-725.027807,0.00038356,14]
[338916161,1727071843300,-500.0,0.00038356,120]
[338916162,1727071843309,-725.027807,0.00038356,14]
[338916163,1727071843318,-500.0,0.00038356,120]
[338916164,1727071843327,-725.027807,0.00038356,14]
[338916165,1727071843337,-725.027807,0.00038356,14]
[338916166,1727071843347,-725.027807,0.00038356,14]
[338916167,1727071843356,-500.0,0.00038356,120]
[338916168,1727071843366,-649.40050298,0.00038356,120]
[338916169,1727071843375,-500.41177883,0.00038356,120]
[338916170,1727071843385,-500.0,0.00038356,120]
[338916171,1727071843394,-560.26683022,0.00038356,120]
[338916172,1727071843403,-500.0,0.00038356,120]
[338916173,1727071843412,-504.84151103,0.00038356,120]
[338916174,1727071843425,-500.67305356,0.00038356,7]
[338916175,1727071843436,-508.24786197,0.00038356,120]
[338916176,1727071843446,-500.0,0.00038356,120]
[338916177,1727071843455,-502.35297539,0.00038356,120]
[338916178,1727071843465,-500.0,0.00038356,120]
[338916179,1727071843474,-500.0,0.00038356,120]
[338916180,1727071843483,-501.41839603,0.00038356,120]
[338916181,1727071843494,-500.0,0.00038356,120]
[338916182,1727071843503,-503.74818517,0.00038356,120]
[338916183,1727071843513,-506.49032655,0.00038356,120]
[338916184,1727071843522,-500.0,0.00038356,120]
[338916185,1727071843531,-504.29278622,0.00038356,120]
[338916186,1727071843540,-503.42712235,0.00038356,120]
[338916187,1727071843550,-529.72710706,0.00038356,120]
[338916188,1727071843560,-500.0,0.00038356,120]
[338916189,1727071843569,-507.43935177,0.00038356,120]
[338916190,1727071843578,-500.0,0.00038356,120]
[338916191,1727071843589,-500.0,0.00038356,120]
[338916192,1727071843599,-500.0,0.00038356,120]
[338916193,1727071843608,-503.07455779,0.00038356,120]
[338916194,1727071843618,-501.39833796,0.00038356,120]
[338916195,1727071843627,-500.0,0.00038356,120]
[338916196,1727071843636,-500.0,0.00038356,120]
[338916197,1727071843646,-500.0,0.00038356,120]
[338916198,1727071843655,-500.0,0.00038356,120]
[338916199,1727071843664,-500.0,0.00038356,120]
[338916200,1727071843674,-500.0,0.00038356,120]
[338916201,1727071843683,-500.0,0.00038356,120]
[338916202,1727071843693,-500.0,0.00038356,120]
[338916203,1727071843702,-502.99085357,0.00038356,120]
[338916204,1727071843711,-500.0,0.00038356,120]
[338916205,1727071843721,-500.27658297,0.00038356,120]
[338916206,1727071843730,-520.15,0.00038356,120]
[338916207,1727071843739,-500.0,0.00038356,120]
[338916208,1727071843749,-500.0,0.00038356,120]
[338916209,1727071843758,-500.0,0.00038356,120]
[338916210,1727071843767,-500.6632268,0.00038356,2]
[338916211,1727071843776,-500.0,0.00038356,120]
[338916212,1727071843785,-500.0,0.00038356,120]
[338916213,1727071843794,-500.0,0.00038356,120]
[338916214,1727071843803,-500.0,0.00038356,120]
[338916215,1727071843812,-502.74085197,0.00038356,120]
[338916216,1727071843821,-500.0,0.00038356,120]
[338916217,1727071843831,-500.0,0.00038356,120]
[338916218,1727071843840,-500.0,0.00038356,120]
[338916219,1727071843850,-500.0,0.00038356,120]
[338916220,1727071843859,-500.0,0.00038356,120]
[338916221,1727071843868,-500.0,0.00038356,120]
[338916222,1727071843881,-500.0,0.00038356,120]
[338916223,1727071843891,-500.0,0.00038356,120]
[338916224,1727071843901,-500.0,0.00038356,120]
[338916225,1727071843911,-500.85403557,0.00038356,120]
[338916226,1727071843920,-402.95801858,0.00038356,120]
[338916227,1727071843929,-500.0,0.00038356,120]
[338916228,1727071843938,-500.0,0.00038356,120]
[338916229,1727071843948,-500.0,0.00038356,120]
[338916230,1727071843957,-500.0,0.00038356,120]
[338916231,1727071843966,-500.0,0.00038356,120]
[338916232,1727071843975,-500.0,0.00038356,120]
[338916233,1727071843984,-500.0,0.00038356,120]
[338916234,1727071843994,-500.0,0.00038356,120]
[338916235,1727071844006,-500.0,0.00038356,120]
[338916236,1727071844015,-500.0,0.00038356,120]
[338916237,1727071844024,-500.0,0.00038356,120]
[338916238,1727071844034,-500.0,0.00038356,120]
[338916239,1727071844043,-500.0,0.00038356,120]
[338916240,1727071844051,-500.0,0.00038356,120]
[338916241,1727071844061,-500.0,0.00038356,120]
[338916242,1727071844070,-500.0,0.00038356,120]
[338916243,1727071844079,-500.0,0.00038356,120]
[338916244,1727071844088,-461.06494488,0.00038356,120]
[338916245,1727071844097,-500.0,0.00038356,25]
[338916246,1727071844106,-500.0,0.00038356,120]
[338916247,1727071844115,-500.0,0.00038356,120]
[338916248,1727071844125,-505.49026309,0.00038356,120]
[338916249,1727071844134,-500.0,0.00038356,120]
[338916250,1727071844143,-500.0,0.00038356,120]
[338916251,1727071844157,-500.0,0.00038356,120]
[338916252,1727071844166,-500.0,0.00038356,120]
[338916253,1727071844175,-500.0,0.00038356,120]
[338916254,1727071844185,-533.87350475,0.00038356,120]
[338916255,1727071844195,-500.0,0.00038356,120]
[338916256,1727071844204,-500.0,0.00038356,120]
[338916257,1727071844213,-500.0,0.00038356,120]
[338916258,1727071844222,-500.0,0.00038356,120]
[338916259,1727071844232,-507.73151563,0.00038356,120]
[338916260,1727071844241,-519.92113116,0.00038356,120]
[338916261,1727071844249,-500.0,0.00038356,120]
[338916262,1727071844258,-505.96832943,0.00038356,120]
[338916263,1727071844268,-505.07706924,0.00038356,120]
[338916264,1727071844278,-500.0,0.00038356,120]
[338916265,1727071844288,-500.0,0.00038356,120]
[338916266,1727071844297,-501.9362561,0.00038356,120]
[338916267,1727071844316,-500.0,0.00038356,120]
[338916268,1727071844326,-500.0,0.00038356,120]
[338916269,1727071844336,-503.63264524,0.00038356,120]
[338916270,1727071844345,-500.0,0.00038356,120]
[338916271,1727071844354,-541.88776192,0.00038356,120]
[338916272,1727071844364,-511.3743749,0.00038356,120]
[338916273,1727071844373,-500.0,0.00038356,120]
[338916274,1727071844382,-500.0,0.00038356,120]
[338916275,1727071844392,-500.0,0.00038356,120]
[338916276,1727071844403,-504.93183669,0.00038356,120]
[338916277,1727071844412,-500.0,0.00038356,120]
[338916278,1727071844426,-500.0,0.00038356,120]
[338916279,1727071844435,-319.47381459,0.00038356,120]
[338916280,1727071844639,-180.52618541,0.00038356,120]
[338916281,1727071844650,-509.23507728,0.00038356,120]
[338916282,1727071844659,-380.6116801,0.00038356,120]
[338916283,1727071844668,-500.0,0.00038356,120]
[338916284,1727071844677,-502.35876923,0.00038356,120]
[338916285,1727071844687,-501.79684726,0.00038356,120]
[338916286,1727071844696,-150.62019491,0.00038356,120]
[338916287,1727071844801,-349.37980509,0.00038356,120]
[338916288,1727071844810,-500.77631191,0.00038356,120]
[338916289,1727071844819,-500.0,0.00038356,120]
[338916290,1727071844828,-500.0,0.00038356,120]
[338916291,1727071844837,-517.03405985,0.00038356,120]
[338916292,1727071844847,-500.56719655,0.00038356,120]
[338916293,1727071844857,-500.0,0.00038356,30]
[338916294,1727071844866,-512.82652102,0.00038356,120]
[338916295,1727071844879,-500.0,0.00038356,120]
[338916296,1727071844889,-500.0,0.00038356,120]
[338916297,1727071844901,-505.47931923,0.00038356,120]
[338916298,1727071844910,-502.6196713,0.00038356,120]
[338916299,1727071844920,-500.0,0.00038356,2]
[338916300,1727071844930,-502.00360134,0.00038356,120]
[338916301,1727071844939,-501.93022482,0.00038356,120]
[338916302,1727071844949,-505.79190321,0.00038356,120]
[338916303,1727071844958,-500.0,0.00038356,120]
[338916304,1727071844968,-509.87977181,0.00038356,120]
[338916305,1727071844978,-500.0,0.00038356,120]
[338916306,1727071844987,-506.82373403,0.00038356,120]
[338916307,1727071844997,-500.0,0.00038356,120]
[338916308,1727071845006,-508.58207129,0.00038356,120]
[338916309,1727071845015,-500.0,0.00038356,120]
[338916310,1727071845025,-510.59216753,0.00038356,120]
[338916311,1727071845034,-500.0,0.00038356,120]
[338916312,1727071845044,-521.19441581,0.00038356,120]
[338916313,1727071845053,-500.0,0.00038356,120]
[338916314,1727071845062,-282.85069412,0.00038356,120]
[338916315,1727071845071,-500.0,0.00038356,120]
[338916316,1727071845080,-500.0,0.00038356,120]
[338916317,1727071845090,-500.0,0.00038356,120]
[338916318,1727071845099,-500.0,0.00038356,120]
[338916319,1727071845109,-510.67761271,0.00038356,120]
[338916320,1727071845118,-500.0,0.00038356,120]
[338916321,1727071845128,-503.22491081,0.00038356,120]
[338916322,1727071845137,-502.3480134,0.00038356,120]
[338916323,1727071845147,-500.0,0.00038356,120]
[338916324,1727071845157,-500.0,0.00038356,120]
[338916325,1727071845166,-500.0,0.00038356,120]
[338916326,1727071845175,-500.0,0.00038356,120]
[338916327,1727071845184,-138.40141133,0.00038356,120]
[338916334,1727071846557,-283.22362615,0.00038355,2]
[338916343,1727071992283,3000.0,0.000216,2]
[338916344,1727071992587,5850.0,0.0002161,2]
[338916345,1727072103132,396.50383116,0.000199,2]
[338916390,1727072592105,4202.621423,0.000216,2]
[338916396,1727072730274,-730.3639461,0.00025,30]
[338916397,1727072730296,-500.0,0.00025,30]
[338916398,1727072730319,-18.40082397,0.00025263,2]
[338916399,1727072735251,-172.62548243,0.00025263,2]
[338916400,1727072735272,-169.089722,0.00025353,2]
[338916401,1727072735292,-3000.0,0.0002579,2]
[338916402,1727072735317,-6637.1155345,0.00026292,2]
[338916403,1727072735338,-300.0,0.00026573,2]
[338916404,1727072735359,-300.0,0.00026573,2]
[338916405,1727072735380,-875.068126,0.00026745,2]
[338916406,1727072735400,-4257.43676,0.00026896,2]
[338916407,1727072735420,-10882.7821219,0.00027215,2]
[338916408,1727072735440,-274.94171,0.000273,120]
[338916409,1727072735460,-500.0,0.00027397,2]
[338916410,1727072735481,-4257.43676,0.00027581,2]
[338916411,1727072735502,-219.07673951,0.000278,2]
[338916412,1727072735523,-4257.43676,0.00028266,2]
[338916413,1727072735545,-420.0,0.00028741,2]
[338916414,1727072735570,-420.0,0.0002923,2]
[338916415,1727072735592,-250.0,0.00029676,2]
[338916416,1727072735616,-265.39371,0.00029718,2]
[338916417,1727072735638,-24900.0,0.00029719,2]
[338916418,1727072735661,-160.641757,0.00029754,2]
[338916419,1727072735684,-160.641757,0.00029909,2]
[338916420,1727072735707,-160.641757,0.00030064,2]
[338916421,1727072735730,-460.8997014,0.00030117,2]
[338916422,1727072735753,-160.641757,0.00030219,2]
[338916423,1727072735777,-160.641757,0.00030374,2]
[338916424,1727072735799,-160.641757,0.00030529,2]
[338916425,1727072735828,-160.641757,0.00030684,2]
[338916426,1727072735850,-160.641757,0.00030839,2]
[338916427,1727072735874,-160.641757,0.00030994,2]
[338916428,1727072735898,-587.0,0.00031086,2]
[338916429,1727072735922,-160.641757,0.00031149,2]
[338916430,1727072735946,-160.641757,0.00031304,2]
[338916431,1727072735967,-587.0,0.00032153,2]
[338916432,1727072735989,-1699.614138,0.000331,11]
[338916433,1727072736012,-500.0,0.00033165,2]
[338916434,1727072736033,-150.0,0.000332,2]
[338916435,1727072736054,-195.7539088,0.00033622,2]
[338916436,1727072736080,-823.0,0.00033622,2]
[338916437,1727072736101,-166.47871,0.0003363,2]
[338916438,1727072736123,-274.94171,0.000337,120]
[338916439,1727072736145,-171.63,0.00033712,3]
[338916440,1727072736167,-15709.52023627,0.00033722,5]
[338916449,1727072828117,-400.0,0.00030676,2]
[338916450,1727072828144,-2440.12770692,0.00030677,2]
[338916451,1727072847097,-48936.98512568,0.00030677,2]
[338916452,1727072847117,-259.0,0.000319,120]
[338916453,1727072847140,-1791.63749854,0.00033631,2]
[338916454,1727072847160,-858.16,0.00033712,3]
[338916455,1727072847182,-1983.31747514,0.00033722,5]
[338916456,1727072852104,-11180.53727684,0.00033722,5]
[338916457,1727072852248,-5677.59946535,0.00033722,5]
[338916458,1727072852270,-5012.32600765,0.00033722,5]
[338916513,1727072946221,-500.0,0.00027397,2]
[338916710,1727073037938,-161.453577,0.00032333,2]
[338916712,1727073037947,-154.63011046,0.0003242,2]
[338916714,1727073037957,-161.453577,0.0003252,2]
[338916716,1727073037967,-161.453577,0.00032707,2]
[338916718,1727073037976,-161.453577,0.00032895,2]
[338916720,1727073037985,-161.453577,0.00033082,2]
[338916722,1727073037994,-500.0,0.00033165,2]
[338916724,1727073038004,-161.453577,0.00033269,2]
[338916726,1727073038015,-220.25,0.000333,2]
[338916728,1727073038024,-165.0311091,0.00033322,120]
[338916730,1727073038034,-150.0,0.00033322,14]
[338916732,1727073038044,-150.0,0.00033322,14]
[338916734,1727073038054,-200.0,0.00033322,14]
[338916736,1727073038064,-161.453577,0.00033456,2]
[338916738,1727073038074,-161.453577,0.00033643,2]
[338916740,1727073038083,-167.857,0.00033731,36]
[338916742,1727073038093,-161.453577,0.00033831,2]
[338916744,1727073038103,-161.453577,0.00034018,2]
[338916747,1727073038113,-1791.6374985,0.00034812,2]
[338916749,1727073038122,-400.0,0.00034888,2]
[338916751,1727073038132,-400.0,0.00034888,2]
[338916753,1727073038141,-24900.0,0.00034889,2]
[338916755,1727073038151,-151.44737868,0.00035568,2]
[338916756,1727073038160,-199.15926754,0.00035568,2]
[338916758,1727073038169,-400.0,0.00035616,2]
[338916760,1727073038179,-546.500702,0.00035616,120]
[338916762,1727073038188,-600.0,0.00035972,10]
[338916764,1727073038200,-1791.6374985,0.00035994,2]
[338916766,1727073038210,-600.0,0.00036794,10]
[338916768,1727073038219,-500.0,0.00037174,7]
[338916770,1727073038228,-500.0,0.00037174,7]
[338916772,1727073038238,-500.0,0.00037174,7]
[338916775,1727073038249,-500.0,0.00037174,7]
[338916776,1727073038259,-500.0,0.00037174,7]
[338916778,1727073038268,-500.0,0.00037174,7]
[338916780,1727073038279,-500.0,0.00037174,7]
[338916782,1727073038290,-500.0,0.00037174,7]
[338916785,1727073038299,-500.0,0.00037174,7]
[338916787,1727073038308,-500.0,0.00037174,7]
[338916789,1727073038318,-500.0,0.00037174,7]
[338916791,1727073038327,-500.0,0.00037174,7]
[338916793,1727073038336,-153.6095551,0.00037174,7]
[338916795,1727073038347,-500.0,0.00037174,7]
[338916797,1727073038356,-500.0,0.00037174,7]
[338916799,1727073038366,-500.0,0.00037174,7]
[338916801,1727073038375,-1791.6374985,0.00037175,2]
[338916803,1727073038385,-560.0,0.00037412,2]
[338916804,1727073038394,-152.43480147,0.00037413,21]
[338916806,1727073038403,-600.0,0.00037616,10]
[338916808,1727073038413,-470.0,0.00038,5]
[338916810,1727073038422,-154.63011046,0.00038146,2]
[338916812,1727073038432,-1000.0,0.00038235,7]
[338916814,1727073038442,-342.92620216,0.00038235,2]
[338916816,1727073038451,-1000.0,0.00038236,2]
[338916818,1727073038460,-4294.74633691,0.00038246,5]
[338916821,1727073038470,-4057.63550846,0.00038246,5]
[338916823,1727073038480,-335.31564771,0.0003825,2]
[338916825,1727073038489,-192.98824742,0.00038256,2]
[338916827,1727073038499,-88888.0,0.00038256,60]
[338916829,1727073038508,-500.83278847,0.00038273,5]
[338916830,1727073038523,-500.0,0.00038273,5]
[338916832,1727073038537,-518.0,0.000383,2]
[338916834,1727073038547,-150.0,0.00038328,2]
[338916836,1727073038556,-312.46683601,0.00038335,15]
[338916838,1727073038566,-433.9523457,0.00038335,15]
[338916840,1727073038575,-440.47668686,0.00038335,15]
[338916842,1727073038584,-47242.209706,0.00038336,5]
[338916844,1727073038594,-44633.9905931,0.00038336,5]
[338916846,1727073038603,-3000.0,0.00038345,120]
[338916849,1727073038613,-30063.2243584,0.00038346,5]
[338916851,1727073038623,-1514.54533503,0.00038346,5]
[338916856,1727073038666,-26888.90322417,0.00038346,5]
[338916858,1727073038676,-546.91019867,0.00038355,2]
[338916860,1727073038686,-500.66486115,0.00038356,120]
[338916862,1727073038695,-508.90491103,0.00038356,120]
[338916864,1727073038705,-500.0,0.00038356,120]
[338916866,1727073038715,-507.06835713,0.00038356,120]
[338916868,1727073038724,-502.03238393,0.00038356,120]
[338916869,1727073038734,-503.96302629,0.00038356,120]
[338916870,1727073038743,-500.0,0.00038356,120]
[338916871,1727073038752,-249.9681151,0.00038356,120]
[338916872,1727073038761,-506.87875261,0.00038356,120]
[338916873,1727073038771,-500.0,0.00038356,120]